bitfinex-derivatives/quotes_SOLF0:USTF0_20241212
["timestamp","ask_amount","ask_price","bid_price","bid_amount"]
[1734013862677,2.62,232.26,232.14,1.3659]
[1734013862882,2.62,232.26,232.2,2.1525]
[1734013863084,2.62,232.26,232.14,1.3659]
[1734013863280,22.20268033,232.32,232.11,1.3365]
[1734013863487,2.1528,232.17,232.11,3.4898]
[1734013863681,17.12338432,232.23,232.11,1.3365]
[1734013863682,19.74338432,232.23,232.11,1.3365]
[1734013864084,17.12338432,232.27,232.11,1.3365]
[1734013865485,2.1524,232.21,232.15,2.153]
[1734013865884,2.1524,232.21,232.11,1.3365]
[1734013865885,17.12338432,232.27,232.18,2.1527]
[1734013866080,5.07929601,232.32,232.13,19.74338432]
[1734013866081,17.12338432,232.31,232.13,19.74338432]
[1734013866288,19.78838432,232.35,232.17,17.12338432]
[1734013866589,2.1514,232.32,232.21,17.12338432]
[1734013866778,2.1514,232.32,232.22,5.4567]
[1734013866980,2.665,232.35,232.22,5.4567]
[1734013867180,2.1514,232.32,232.22,5.4567]
[1734013867780,2.1514,232.32,232.27,2.1519]
[1734013868180,1.3337,232.35,232.22,5.4567]
[1734013868381,1.3337,232.35,232.25,2.152]
[1734013869091,2.1516,232.3,232.25,2.152]
[1734013869291,1.3337,232.35,232.22,5.4567]
[1734013869486,2.64,232.36,232.22,5.4567]
[1734013869786,17.12338432,232.35,232.22,7.609]
[1734013870086,17.12338432,232.35,232.22,1.4518]
[1734013870288,2.64,232.34,232.22,1.4518]
[1734013870891,2.64,232.35,232.22,1.4518]
[1734013871092,2.1513,232.33,232.22,1.4518]
[1734013871294,2.1513,232.33,232.22,2.8912]
[1734013871489,2.1513,232.33,232.28,2.1518]
[1734013871889,2.64,232.35,232.28,2.1518]
[1734013872093,2.64,232.35,232.24,2.1521]
[1734013872288,2.64,232.35,232.22,2.8912]
[1734013872486,5.24361356,232.38,232.22,2.8912]
[1734013872690,1.3312,232.41,232.29,17.12338432]
[1734013872889,2.64,232.45,232.29,19.76338432]
[1734013873092,0.71911241,232.44,232.35,2.1511]
[1734013873593,0.71902548,232.43,232.35,2.1511]
[1734013873783,4.1346,232.49,232.3,1.3856]
[1734013873988,3.35886279,232.48,232.33,17.12338432]
[1734013874286,17.12338432,232.52,232.33,17.12338432]
[1734013874287,19.76338432,232.52,232.34,2.8281]
[1734013874488,0.71881746,232.51,232.37,17.12338432]
[1734013874688,2.1497,232.51,232.37,17.12338432]
[1734013874990,2.64,232.56,232.35,2.64]
[1734013874991,5.28434371,232.56,232.41,17.12338432]
[1734013875289,5.28434371,232.56,232.42,3.9752]
[1734013875485,22.40772803,232.56,232.42,1.3352]
[1734013875688,0.71863153,232.55,232.42,1.3352]
[1734013875884,17.12338432,232.56,232.42,1.3352]
[1734013876089,2.7365,232.57,232.42,1.3352]
[1734013876286,2.1491,232.57,232.45,17.12338432]
[1734013876486,2.64,232.62,232.46,2.8649]
[1734013876683,17.12338432,232.6,232.46,2.8649]
[1734013876884,0.71852246,232.59,232.46,2.8649]
[1734013877090,0.71852246,232.59,232.46,5.0149]
[1734013877288,5.12014386,232.61,232.47,2.64]
[1734013877493,2.1488,232.6,232.53,2.1494]
[1734013877795,2.64,232.63,232.49,17.12338432]
[1734013878091,2.64,232.63,232.47,2.64]
[1734013878300,2.64,232.63,232.46,2.8649]
[1734013878499,17.12338432,232.6,232.46,2.8649]
[1734013878893,17.12338432,232.56,232.42,1.3352]
[1734013879094,2.64,232.55,232.42,3.4857]
[1734013879293,2.64,232.55,232.42,1.3352]
[1734013879490,2.64,232.55,232.37,19.98828432]
[1734013879695,17.12338432,232.52,232.37,2.8649]
[1734013879995,17.12338432,232.52,232.37,1.4212]
[1734013880193,2.15,232.47,232.37,1.4212]
[1734013880395,2.64,232.47,232.37,1.4212]
[1734013880795,2.1504,232.43,232.37,1.4212]
[1734013880992,17.12338432,232.48,232.32,2.64]
[1734013881197,2.64,232.47,232.32,2.64]
[1734013881796,2.64,232.46,232.32,2.64]
[1734013882093,2.1505,232.42,232.32,2.64]
[1734013882295,2.64,232.46,232.29,17.12338432]
[1734013882593,2.64,232.46,232.26,2.8009]
[1734013882594,17.12338432,232.44,232.3,2.64]
[1734013882893,17.12338432,232.44,232.28,2.64]
[1734013883096,2.7924,232.43,232.28,2.64]
[1734013883291,2.7924,232.43,232.26,2.8009]
[1734013883489,17.12338432,232.4,232.27,2.15266715]
[1734013883789,2.7924,232.43,232.27,2.15266715]
[1734013883790,17.12338432,232.36,232.27,2.15266715]
[1734013884598,4.0454,232.39,232.27,2.15266715]
[1734013885287,2.1511,232.36,232.27,2.15266715]
[1734013885492,4.0454,232.39,232.21,21.09818432]
[1734013885991,4.0454,232.39,232.26,2.1519]
[1734013886598,5.04151589,232.34,232.26,2.1519]
[1734013886798,5.04151589,232.34,232.21,21.09818432]
[1734013886995,2.64,232.33,232.18,2.8081]
[1734013887196,2.1522,232.24,232.17,2.46641]
[1734013887398,17.12338432,232.32,232.17,0.31371]
[1734013887595,17.12338432,232.28,232.17,0.31371]
[1734013887796,2.1526,232.2,232.17,0.31371]
[1734013888000,2.64,232.24,232.17,0.31371]
[1734013888196,19.76338432,232.24,232.17,0.31371]
[1734013888404,1.3237,232.23,232.17,0.31371]
[1734013888599,17.12338432,232.2,232.01,17.12338432]
[1734013888900,17.12338432,232.2,232.02,4.79498663]
[1734013889102,17.12338432,232.16,232.02,2.15498663]
[1734013889405,2.64,232.15,232.02,2.15498663]
[1734013889710,17.12338432,232.12,232.02,2.15498663]
[1734013889999,2.64,232.15,232.02,2.15498663]
[1734013890000,17.12338432,232.08,232.02,2.15498663]
[1734013890203,2.64,232.07,231.87,1.4428]
[1734013890404,17.12338432,232.04,231.87,1.4428]
[1734013890796,17.12338432,232.08,231.87,1.4428]
[1734013890998,5.18655554,232.06,231.87,6.64539697]
[1734013891203,5.18655554,232.06,231.89,27.83223189]
[1734013892002,7.82655554,232.06,231.89,27.83223189]
[1734013892598,2.64,232.07,231.93,27.83223189]
[1734013892795,1.0,232.11,231.97,27.83223189]
[1734013893001,2.64,232.12,231.98,1.3575]
[1734013893199,5.24658152,232.12,232.04,2.154]
[1734013893507,2.64,232.13,232.01,27.83223189]
[1734013893903,4.7932,232.13,232.01,27.83223189]
[1734013894104,2.64,232.13,232.01,27.83223189]
[1734013894712,4.7932,232.13,232.05,2.1539]
[1734013895015,4.7932,232.13,231.99,1.3292]
[1734013895016,2.64,232.13,231.99,1.3292]
[1734013895314,27.83223189,232.11,231.98,1.3575]
[1734013895811,27.83223189,232.11,231.94,1.324]
[1734013896511,2.1537,232.07,231.94,1.324]
[1734013896711,2.64,232.07,231.97,27.83223189]
[1734013896908,2.1534,232.11,232.01,2.1542]
[1734013897114,2.64,232.13,231.97,30.47223189]
[1734013897312,1.3669,232.18,232.01,27.83223189]
[1734013897613,2.153,232.15,232.07,2.1537]
[1734013898215,2.1528,232.17,232.03,2.64]
[1734013898410,2.78,232.18,232.05,27.83223189]
[1734013898607,5.0736391,232.23,232.05,27.83223189]
[1734013898805,5.0736391,232.23,232.09,27.83223189]
[1734013899005,5.0736391,232.23,232.09,30.61223189]
[1734013899215,27.83223189,232.27,232.09,30.61223189]
[1734013899413,2.78,232.26,232.13,27.83223189]
[1734013899605,31.87603189,232.31,232.13,27.83223189]
[1734013899606,5.11087682,232.29,232.14,2.808]
[1734013900509,5.11087682,232.29,232.14,1.3986]
[1734013900706,5.11087682,232.29,232.08,27.83223189]
[1734013900707,27.83223189,232.27,232.11,7.40979199]
[1734013900905,2.1525,232.21,232.11,5.25649199]
[1734013901111,2.78,232.22,232.11,5.25649199]
[1734013901513,2.78,232.22,232.1,2.78]
[1734013902016,2.1527,232.18,232.11,2.1533]
[1734013902310,2.78,232.22,232.1,2.78]
[1734013902511,2.1529,232.16,232.1,2.78]
[1734013902705,2.78,232.22,232.07,1.4284]
[1734013903112,27.83223189,232.19,232.03,2.78]
[1734013903313,27.83223189,232.15,232.01,1.4226]
[1734013903616,2.78,232.14,232.01,1.4226]
[1734013904512,2.78,232.14,232.02,2.1541]
[1734013905413,2.1535,232.1,232.03,2.154]
[1734013905612,2.78,232.14,232.01,1.4226]
[1734013906116,2.78,232.14,231.97,1.4151]
[1734013906312,27.83223189,232.11,231.97,1.4151]
[1734013906511,27.83223189,232.11,231.93,1.4493]
[1734013906712,27.83223189,232.11,231.94,2.1548]
[1734013906713,2.1542,232.02,231.94,2.1548]
[1734013906912,2.1542,232.02,231.93,1.4493]
[1734013907114,2.78,232.04,231.92,1.4284]
[1734013908321,2.1544,232.0,231.92,1.4284]
[1734013908517,2.78,232.04,231.92,1.4284]
[1734013908721,2.78,232.04,231.89,5.28872924]
[1734013908918,27.83223189,232.03,231.86,2.7451]
[1734013909117,27.83223189,231.99,231.86,2.7451]
[1734013909318,2.1552,231.92,231.86,2.1557]
[1734013909511,2.78,231.98,231.86,2.1557]
[1734013909711,2.78,231.98,231.84,5.15890322]
[1734013909913,2.78,231.97,231.84,32.99113511]
[1734013910116,2.78,231.97,231.85,2.8069]
[1734013910625,2.1549,231.94,231.85,2.8069]
[1734013911119,27.83223189,232.03,231.85,2.8069]
[1734013911314,2.78,232.02,231.86,2.78]
[1734013911620,2.78,232.02,231.85,2.8069]
[1734013911815,2.78,232.02,231.87,2.1555]
[1734013912022,27.83223189,231.99,231.87,2.1555]
[1734013912626,27.83223189,231.99,231.85,2.8069]
[1734013912627,2.78,232.0,231.85,2.8069]
[1734013913121,27.83223189,231.98,231.85,1.4178]
[1734013913319,27.83223189,231.94,231.73,1.3553]
[1734013913517,27.83223189,231.9,231.73,2.7472]
[1734013913717,2.156,231.83,231.77,2.1564]
[1734013914518,2.78,231.86,231.73,7.89753519]
[1734013914719,2.1561,231.82,231.76,2.1566]
[1734013914927,30.61223189,231.86,231.64,83.74016487]
[1734013915120,2.1566,231.76,231.69,2.1572]
[1734013915318,2.78,231.79,231.65,6.9778]
[1734013915624,2.78,231.79,231.65,4.1978]
[1734013915821,2.1569,231.73,231.65,4.1978]
[1734013916018,27.83223189,231.78,231.64,55.90793298]
[1734013916318,27.83223189,231.78,231.38,147.63477778]
[1734013916319,27.83223189,231.74,231.56,27.83223189]
[1734013916622,2.78,231.74,231.6,27.83223189]
[1734013916919,2.78,231.74,231.59,5.14250227]
[1734013916920,5.20208193,231.78,231.7,2.1571]
[1734013917120,7.98208193,231.78,231.64,27.83223189]
[1734013917419,2.78,231.78,231.65,1.4272]
[1734013917619,2.78,231.78,231.68,27.83223189]
[1734013917828,27.83223189,231.86,231.68,27.83223189]
[1734013918120,27.83223189,231.86,231.69,1.402]
[1734013918121,2.78,231.85,231.69,1.402]
[1734013918318,2.78,231.85,231.73,2.1568]
[1734013918319,2.1562,231.8,231.73,2.1568]
[1734013918521,5.19534684,231.82,231.69,1.402]
[1734013918720,2.78,231.85,231.69,1.402]
[1734013918927,2.1558,231.85,231.78,2.1564]
[1734013919220,2.78,231.84,231.78,2.1564]
[1734013920923,4.2689,231.91,231.76,27.83223189]
[1734013921120,2.78,231.89,231.77,1.4148]
[1734013921325,2.78,231.89,231.85,2.1557]
[1734013921526,2.78,231.89,231.77,1.4148]
[1734013922021,2.1557,231.86,231.77,1.4148]
[1734013922223,2.78,231.89,231.77,1.4148]
[1734013922422,27.83223189,231.87,231.73,2.78]
[1734013922622,2.78,231.89,231.73,2.78]
[1734013922825,5.20729399,231.92,231.76,27.83223189]
[1734013923023,2.1553,231.9,231.83,2.1559]
[1734013923224,2.78,231.92,231.79,2.78]
[1734013923421,1.4033,231.96,231.79,2.78]
[1734013923630,27.83223189,231.98,231.8,27.83223189]
[1734013923631,3.78,231.97,231.8,27.83223189]
[1734013923824,2.78,231.97,231.84,27.83223189]
[1734013924126,2.78,231.97,231.85,5.6325]
[1734013924821,44.94702724,232.12,231.85,5.6325]
[1734013925027,44.94702724,232.12,231.88,27.83223189]
[1734013925028,1.4186,232.07,231.88,27.83223189]
[1734013925224,5.11802102,232.02,231.85,5.6325]
[1734013925432,27.83223189,232.01,231.85,5.6325]
[1734013925619,5.11802102,232.02,231.85,5.6325]
[1734013925620,27.83223189,231.97,231.85,5.6325]
[1734013925825,27.83223189,231.97,231.85,2.8525]
[1734013926526,2.155,231.94,231.85,5.0082]
[1734013926729,27.83223189,231.97,231.85,5.0082]
[1734013926924,27.83223189,231.97,231.85,2.8525]
[1734013927230,2.1551,231.92,231.85,2.8525]
[1734013927436,2.78,231.94,231.85,2.8525]
[1734013927729,27.83223189,231.93,231.76,27.83223189]
[1734013927935,29.15983189,231.93,231.76,1.4337]
[1734013928235,2.1557,231.86,231.79,2.1563]
[1734013928626,30.77223189,231.89,231.73,2.8361]
[1734013929330,2.1557,231.87,231.78,2.1564]
[1734013929525,30.77223189,231.89,231.74,1.3534]
[1734013930123,35.87679261,231.89,231.74,1.3534]
[1734013930324,2.156,231.83,231.77,2.1565]
[1734013930633,35.87679261,231.89,231.74,1.3534]
[1734013931721,32.93679261,231.89,231.74,1.3534]
[1734013932530,2.1553,231.9,231.84,2.1558]
[1734013932730,2.94,231.91,231.84,2.1558]
[1734013933123,2.1554,231.89,231.82,2.156]
[1734013933323,8.14173594,231.91,231.77,2.94]
[1734013933736,2.1561,231.82,231.77,2.1565]
[1734013933930,27.83223189,231.89,231.74,1.3534]
[1734013934633,27.83223189,231.85,231.74,1.3534]
[1734013934830,27.83223189,231.81,231.64,27.83223189]
[1734013935032,27.83223189,231.81,231.65,1.4286]
[1734013935227,2.1568,231.75,231.68,2.1573]
[1734013935533,2.94,231.77,231.66,5.25246943]
[1734013935733,2.1566,231.76,231.71,2.1571]
[1734013936032,2.1566,231.76,231.66,5.25246943]
[1734013936033,2.94,231.83,231.68,30.77223189]
[1734013936233,2.1563,231.79,231.73,2.1568]
[1734013936534,2.94,231.83,231.68,30.77223189]
[1734013936934,2.156,231.82,231.77,2.1565]
[1734013937135,1.3818,231.87,231.68,30.77223189]
[1734013937335,1.3818,231.87,231.72,27.83223189]
[1734013937540,2.1557,231.86,231.81,2.1561]
[1734013937839,27.83223189,231.89,231.74,2.94]
[1734013938035,27.83223189,231.93,231.74,2.94]
[1734013938229,27.83223189,231.93,231.76,27.83223189]
[1734013938230,30.77223189,231.93,231.76,27.83223189]
[1734013938433,35.82624953,231.93,231.76,27.83223189]
[1734013938633,35.82624953,231.93,231.77,1.4231]
[1734013938828,2.94,231.93,231.77,1.4231]
[1734013939138,30.77223189,231.93,231.77,1.4231]
[1734013939333,27.83223189,231.89,231.77,3.5795]
[1734013939532,27.83223189,231.85,231.73,2.7356]
[1734013939739,2.94,231.84,231.73,2.7356]
[1734013939940,2.94,231.84,231.76,2.1565]
[1734013940334,27.83223189,231.81,231.69,1.4231]
[1734013940933,27.83223189,231.81,231.66,8.19246943]
[1734013940934,2.1581,231.6,231.49,2.1591]
[1734013941140,2.94,231.6,231.46,2.8241]
[1734013941535,5.0981,231.6,231.51,2.1589]
[1734013941736,27.83223189,231.66,231.49,5.09407097]
[1734013941939,2.94,231.65,231.49,5.09407097]
[1734013942237,2.94,231.64,231.49,5.09407097]
[1734013942436,2.94,231.64,231.52,2.1588]
[1734013943037,5.0978,231.64,231.52,2.1588]
[1734013943233,5.0978,231.64,231.47,2.94]
[1734013943234,2.94,231.64,231.47,2.94]
[1734013943634,27.83223189,231.62,231.47,2.94]
[1734013943935,27.83223189,231.62,231.52,2.1588]
[1734013943936,29.99023189,231.62,231.52,2.1588]
[1734013944938,27.83223189,231.58,231.46,2.8241]
[1734013945134,2.94,231.57,231.46,2.8241]
[1734013945336,27.83223189,231.54,231.36,27.83223189]
[1734013945535,27.83223189,231.54,231.4,5.14413226]
[1734013945737,27.83223189,231.54,231.37,2.7461]
[1734013945938,2.159,231.51,231.41,2.1598]
[1734013946138,2.94,231.51,231.41,2.1598]
[1734013946538,2.1591,231.49,231.39,2.16]
[1734013946735,2.1591,231.49,231.37,2.7461]
[1734013947140,2.1591,231.49,231.4,2.1599]
[1734013947540,27.83223189,231.5,231.37,7.83995205]
[1734013948039,27.83223189,231.5,231.43,2.1596]
[1734013948646,27.83223189,231.5,231.37,7.83995205]
[1734013949038,27.83223189,231.5,231.37,2.7461]
[1734013949242,27.83223189,231.5,231.36,2.94]
[1734013949439,27.83223189,231.5,231.32,2.7201]
[1734013949842,27.83223189,231.5,231.39,2.16]
[1734013950243,27.83223189,231.5,231.34,5.05533107]
[1734013950438,27.83223189,231.5,231.42,2.1597]
[1734013950646,27.83223189,231.5,231.34,5.05533107]
[1734013950843,2.94,231.49,231.34,5.05533107]
[1734013951043,27.83223189,231.54,231.36,27.83223189]
[1734013951240,2.94,231.53,231.37,2.94]
[1734013951441,2.94,231.53,231.37,4.3602]
[1734013952044,2.7685,231.57,231.37,4.3602]
[1734013952247,1.3775,231.71,231.4,27.83223189]
[1734013952441,27.83223189,231.62,231.4,27.83223189]
[1734013953142,2.1582,231.59,231.4,27.83223189]
[1734013953548,27.83223189,231.58,231.4,27.83223189]
[1734013953744,27.83223189,231.58,231.5,2.159]
[1734013954140,2.1587,231.54,231.48,2.1591]
[1734013954345,2.1587,231.54,231.46,2.94]
[1734013954949,2.1585,231.56,231.46,2.94]
[1734013955252,29.21323189,231.58,231.46,2.94]
[1734013955447,27.83223189,231.58,231.46,2.94]
[1734013955845,2.94,231.61,231.47,1.4259]
[1734013956651,27.83223189,231.58,231.47,1.4259]
[1734013957758,27.83223189,231.58,231.54,2.1586]
[1734013957948,27.83223189,231.58,231.47,1.4259]
[1734013958145,2.1576,231.65,231.52,2.1588]
[1734013958347,27.83223189,231.62,231.52,2.88]
[1734013958949,30.71223189,231.62,231.48,9.50232757]
[1734013959753,2.1583,231.58,231.53,2.1587]
[1734013960150,2.1582,231.59,231.53,2.1587]
[1734013960847,2.1581,231.61,231.56,2.1585]
[1734013961054,27.83223189,231.62,231.48,9.50232757]
[1734013961452,27.83223189,231.62,231.52,2.1588]
[1734013961453,29.99013189,231.62,231.52,2.1588]
[1734013961655,27.83223189,231.62,231.49,1.3474]
[1734013961954,2.88,231.65,231.49,1.3474]
[1734013962255,27.83223189,231.58,231.48,5.21512757]
[1734013962446,27.83223189,231.58,231.4,2.8868]
[1734013962755,27.83223189,231.58,231.44,2.88]
[1734013962945,29.27573189,231.58,231.44,2.88]
[1734013963148,2.1588,231.52,231.4,2.8868]
[1734013963348,2.1588,231.52,231.4,5.7668]
[1734013964053,2.159,231.5,231.4,2.8868]
[1734013964254,27.83223189,231.54,231.4,5.7668]
[1734013964452,27.83223189,231.54,231.45,2.1594]
[1734013964648,2.159,231.5,231.4,5.7668]
[1734013964853,27.83223189,231.54,231.4,5.7668]
[1734013965052,27.83223189,231.54,231.41,5.28662823]
[1734013965250,2.1587,231.53,231.41,5.28662823]
[1734013965447,27.83223189,231.54,231.41,5.28662823]
[1734013965857,2.1591,231.5,231.41,5.28662823]
[1734013966058,27.83223189,231.54,231.43,2.1596]
[1734013966350,27.83223189,231.54,231.4,5.7668]
[1734013966351,2.1592,231.49,231.4,5.7668]
[1734013966554,2.88,231.53,231.4,4.3264]
[1734013966952,2.1593,231.47,231.42,2.1597]
[1734013967158,27.83223189,231.5,231.37,1.3435]
[1734013967556,27.83223189,231.46,231.34,1.4276]
[1734013967759,27.83223189,231.46,231.29,1.4192]
[1734013967760,30.71223189,231.46,231.29,1.4192]
[1734013967956,30.71223189,231.46,231.3,2.88]
[1734013967957,1.3654,231.45,231.3,2.88]
[1734013968152,27.83223189,231.42,231.3,2.88]
[1734013968355,27.83223189,231.42,231.32,5.2054075]
[1734013968556,1.3654,231.45,231.32,5.2054075]
[1734013969262,5.08611259,231.49,231.32,5.2054075]
[1734013969755,27.83223189,231.46,231.15,47.24312888]
[1734013969952,27.83223189,231.41,231.23,27.83223189]
[1734013970157,6.9985,231.45,231.23,27.83223189]
[1734013970352,2.1599,231.41,231.34,2.1604]
[1734013970557,2.1599,231.41,231.24,2.88]
[1734013970862,2.1597,231.43,231.27,27.83223189]
[1734013971056,6.9985,231.45,231.28,1.4477]
[1734013971765,27.83223189,231.38,231.25,2.88]
[1734013971955,2.1606,231.33,231.28,2.1611]
[1734013972154,2.88,231.37,231.22,5.12760647]
[1734013972654,2.88,231.37,231.22,8.00760647]
[1734013973053,2.88,231.37,231.31,2.1608]
[1734013973254,30.71223189,231.42,231.23,27.83223189]
[1734013973461,2.88,231.42,231.23,27.83223189]
[1734013974262,2.1602,231.37,231.23,27.83223189]
[1734013974460,2.1602,231.37,231.22,8.00760647]
[1734013974461,27.83223189,231.34,231.22,5.12760647]
[1734013974652,27.83223189,231.34,231.16,2.88]
[1734013974653,30.71223189,231.34,231.2,1.3453]
[1734013975360,2.1609,231.31,231.25,2.1613]
[1734013975759,2.1609,231.31,231.21,5.09247319]
[1734013975961,30.71223189,231.34,231.28,2.161]
[1734013976158,30.71223189,231.34,231.1,92.71168465]
[1734013976363,27.83223189,231.3,231.18,5.1625174]
[1734013976559,30.71223189,231.3,231.18,5.1625174]
[1734013976763,2.1613,231.26,231.21,2.1617]
[1734013976979,30.71223189,231.3,231.18,5.1625174]
[1734013977360,2.161,231.29,231.23,2.1615]
[1734013977760,2.161,231.29,231.18,5.1625174]
[1734013977957,4.245,231.33,231.18,5.1625174]
[1734013978562,27.83223189,231.34,231.18,5.1625174]
[1734013978762,27.83223189,231.34,231.19,2.88]
[1734013979060,2.1608,231.31,231.19,2.88]
[1734013979257,17.23373172,231.34,231.19,2.88]
[1734013979459,2.1609,231.3,231.23,2.1615]
[1734013979661,17.23373172,231.34,231.19,2.88]
[1734013980263,17.23373172,231.3,231.18,5.1625174]
[1734013980658,2.1613,231.26,231.2,2.1618]
[1734013980957,2.1613,231.26,231.14,2.9]
[1734013980958,17.23373172,231.26,231.14,2.9]
[1734013981166,17.23373172,231.26,231.16,5.07303595]
[1734013981366,2.9,231.28,231.16,5.07303595]
[1734013981961,17.23373172,231.3,231.16,5.07303595]
[1734013982158,4.1162,231.33,231.16,5.07303595]
[1734013982361,17.23373172,231.29,231.22,2.1616]
[1734013982561,17.23373172,231.29,231.16,5.07303595]
[1734013982765,19.39513172,231.25,231.19,2.1619]
[1734013983068,17.23373172,231.25,231.11,4.1399]
[1734013983460,17.23373172,231.21,231.11,1.3453]
[1734013983667,20.13373172,231.21,231.1,5.08030168]
[1734013983966,20.13373172,231.21,231.01,2.7091]
[1734013983967,2.1621,231.17,231.05,2.9]
[1734013984171,17.23373172,231.17,231.05,2.9]
[1734013984463,17.23373172,231.17,231.01,4.1174]
[1734013984464,17.23373172,231.17,231.09,2.1628]
[1734013984763,17.23373172,231.17,231.01,4.1174]
[1734013984964,2.1625,231.14,231.07,2.163]
[1734013985162,17.23373172,231.13,231.01,4.1174]
[1734013985359,2.9,231.15,230.94,70.06550827]
[1734013985360,17.23373172,231.09,230.94,70.06550827]
[1734013985564,17.23373172,231.09,231.02,2.1634]
[1734013985565,2.163,231.08,231.02,2.1634]
[1734013985966,2.163,231.08,230.99,5.08517566]
[1734013985967,2.1631,231.07,230.99,5.08517566]
[1734013986167,2.9,231.08,230.95,1.4083]
[1734013986168,17.23373172,231.04,230.95,1.4083]
[1734013986465,17.23373172,231.0,230.83,5.07738826]
[1734013986671,2.9,231.04,230.85,17.23373172]
[1734013987059,4.0882,231.07,230.89,17.23373172]
[1734013987262,4.0882,231.07,230.9,30.9671113]
[1734013987565,2.1634,231.04,230.9,2.9]
[1734013987780,2.1634,231.04,230.95,2.1641]
[1734013987964,28.0671113,231.05,230.95,2.1641]
[1734013988570,28.0671113,231.05,230.88,3.02]
[1734013988571,28.0671113,231.05,230.93,2.1643]
[1734013988767,28.0671113,231.05,230.88,3.02]
[1734013988968,28.0671113,231.01,230.86,3.02]
[1734013989168,3.02,231.0,230.84,2.16600242]
[1734013989368,28.0671113,231.01,230.84,5.18600242]
[1734013989569,3.02,231.01,230.84,5.18600242]
[1734013989866,3.02,231.02,230.86,28.0671113]
[1734013990765,5.1835,231.02,230.94,2.1642]
[1734013991262,3.02,231.02,230.86,28.0671113]
[1734013992369,28.0671113,231.05,230.86,28.0671113]
[1734013992567,3.02,231.05,230.9,28.0671113]
[1734013992863,1.4073,231.07,230.94,28.0671113]
[1734013993063,1.4073,231.07,230.95,1.4147]
[1734013993465,1.4073,231.07,231.04,2.1633]
[1734013993973,3.02,231.12,230.97,3.02]
[1734013994270,32.3878113,231.36,231.02,28.0671113]
[1734013994271,28.0671113,231.21,231.02,28.0671113]
[1734013994476,7.40736286,231.21,231.14,2.1624]
[1734013994670,2.1618,231.21,231.14,2.1624]
[1734013994869,28.0671113,231.3,231.14,2.1624]
[1734013995070,31.0871113,231.3,231.14,2.1624]
[1734013995281,28.0671113,231.26,231.11,1.3987]
[1734013995474,2.16216216,231.25,231.11,1.3987]
[1734013996471,2.16216216,231.25,231.19,2.1619]
[1734013996694,2.16216216,231.25,231.11,1.3987]
[1734013996875,2.16216216,231.25,231.21,2.1617]
[1734013997075,2.16216216,231.25,231.16,3.02]
[1734013997377,2.16216216,231.25,231.21,2.1617]
[1734013998075,2.16216216,231.25,231.22,2.1616]
[1734013998279,2.16216216,231.25,231.16,3.02]
[1734013999573,2.16216216,231.25,231.14,4.4279]
[1734014000279,2.16216216,231.25,231.17,2.1621]
[1734014000573,2.16216216,231.25,231.14,4.4279]
[1734014000785,2.16216216,231.25,231.18,2.162]
[1734014001081,2.16216216,231.25,231.14,1.4079]
[1734014001870,2.16216216,231.25,231.16,2.1621]
[1734014002075,2.16216216,231.25,231.13,5.17752635]
[1734014002582,2.16216216,231.25,231.18,2.162]
[1734014003277,2.16216216,231.25,231.13,5.17752635]
[1734014003476,2.16216216,231.25,231.14,1.3463]
[1734014003773,2.16216216,231.25,231.14,29.4134113]
[1734014004173,2.16216216,231.25,231.18,28.0671113]
[1734014004370,2.16216216,231.25,231.24,2.1614]
[1734014004574,1.3495,231.33,231.19,3.02]
[1734014005577,1.3495,231.33,231.14,29.4134113]
[1734014005770,1.3495,231.33,231.15,3.02]
[1734014007174,18.58721283,231.33,231.15,3.02]
[1734014007984,2.161,231.3,231.24,2.1614]
[1734014008378,2.161,231.3,231.16,3.02]
[1734014008776,18.58721283,231.33,231.16,3.02]
[1734014008980,2.161,231.29,231.16,3.02]